[Event "GrandPrix_29.05"]
[Site "Chess.com"]
[Date "2020.05.29"]
[Round "4"]
[White "Cocolino12"]
[Black "dosto07"]
[Result "1/2-1/2"]
[WhiteElo "2316"]
[BlackElo "2109"]
[TimeControl "600+2"]
[EndTime "11:01:15 PDT"]
[Termination "Game drawn by repetition"]

1. e4 {[%clk 0:10:01.9]} 1... e5 {[%clk 0:09:58.2]} 2. Nf3 {[%clk 0:10:02.4]}
2... Nc6 {[%clk 0:09:57.2]} 3. Nc3 {[%clk 0:10:03.7]} 3... Nf6 {[%clk
0:09:56.4]} 4. Bb5 {[%clk 0:10:04.9]} 4... Bb4 {[%clk 0:09:46]} 5. O-O {[%clk
0:10:05.1]} 5... O-O {[%clk 0:09:11.2]} 6. d3 {[%clk 0:10:01.4]} 6... d6 {[%clk
0:09:03.6]} 7. Bg5 {[%clk 0:10:01.3]} 7... Bxc3 {[%clk 0:08:56.3]} 8. bxc3
{[%clk 0:10:03.2]} 8... Qe7 {[%clk 0:08:54.1]} 9. Re1 {[%clk 0:10:04.2]} 9... h6
{[%clk 0:08:44.6]} 10. Bh4 {[%clk 0:10:03.9]} 10... Bg4 {[%clk 0:08:41.2]} 11.
h3 {[%clk 0:09:43.5]} 11... Bd7 {[%clk 0:07:34.2]} 12. Rb1 {[%clk 0:09:35.9]}
12... Rfe8 {[%clk 0:06:58.1]} 13. Nh2 {[%clk 0:08:40]} 13... g5 {[%clk
0:06:40.2]} 14. Bg3 {[%clk 0:08:39.6]} 14... b6 {[%clk 0:06:14.7]} 15. Ng4
{[%clk 0:08:27.5]} 15... Nxg4 {[%clk 0:06:13.1]} 16. hxg4 {[%clk 0:08:28.9]}
16... Rad8 {[%clk 0:05:43]} 17. f3 {[%clk 0:08:01.7]} 17... Na5 {[%clk
0:05:38.5]} 18. Bxd7 {[%clk 0:07:40.7]} 18... Qxd7 {[%clk 0:05:33.6]} 19. c4
{[%clk 0:07:21.2]} 19... Nb7 {[%clk 0:05:02.5]} 20. Bf2 {[%clk 0:06:49.3]} 20...
Nc5 {[%clk 0:04:32.9]} 21. c3 {[%clk 0:06:19.8]} 21... Ne6 {[%clk 0:04:19.9]}
22. g3 {[%clk 0:06:15.6]} 22... c5 {[%clk 0:04:19.8]} 23. Kg2 {[%clk 0:06:15.5]}
23... Kg7 {[%clk 0:04:19.8]} 24. Rh1 {[%clk 0:06:15.2]} 24... Rh8 {[%clk
0:04:20.2]} 25. Rh5 {[%clk 0:06:09.3]} 25... Kg6 {[%clk 0:04:12.7]} 26. Be3
{[%clk 0:06:06.4]} 26... f6 {[%clk 0:04:12.6]} 27. Qc2 {[%clk 0:05:58.1]} 27...
Ng7 {[%clk 0:03:59.4]} 28. Rh2 {[%clk 0:05:57.3]} 28... Rb8 {[%clk 0:03:46.6]}
29. a4 {[%clk 0:05:55.4]} 29... a6 {[%clk 0:03:32.1]} 30. Qd1 {[%clk 0:05:40.9]}
30... b5 {[%clk 0:03:26.6]} 31. axb5 {[%clk 0:05:37.7]} 31... axb5 {[%clk
0:03:27.4]} 32. cxb5 {[%clk 0:05:38.2]} 32... Rxb5 {[%clk 0:03:27.3]} 33. c4
{[%clk 0:05:33.9]} 33... Rb4 {[%clk 0:03:23.7]} 34. Bd2 {[%clk 0:05:04.2]} 34...
Rb7 {[%clk 0:03:15.7]} 35. Rxb7 {[%clk 0:04:54.3]} 35... Qxb7 {[%clk 0:03:15.2]}
36. Qc2 {[%clk 0:04:54.9]} 36... h5 {[%clk 0:03:07.3]} 37. gxh5+ {[%clk
0:04:54]} 37... Rxh5 {[%clk 0:03:07.9]} 38. Rxh5 {[%clk 0:04:36.2]} 38... Kxh5
{[%clk 0:03:02.4]} 39. f4 {[%clk 0:04:25.1]} 39... gxf4 {[%clk 0:02:54.9]} 40.
gxf4 {[%clk 0:04:27]} 40... Kg6 {[%clk 0:02:36.4]} 41. f5+ {[%clk 0:04:17.7]}
41... Kf7 {[%clk 0:02:35.4]} 42. Bh6 {[%clk 0:04:16.6]} 42... Qb4 {[%clk
0:02:07.3]} 43. Qe2 {[%clk 0:03:55.1]} 43... Ne8 {[%clk 0:02:04.1]} 44. Kf3
{[%clk 0:03:26.7]} 44... Qb1 {[%clk 0:01:57.9]} 45. Bd2 {[%clk 0:03:13.2]} 45...
Ng7 {[%clk 0:01:45.5]} 46. Qg2 {[%clk 0:03:09.7]} 46... Qxd3+ {[%clk 0:01:37.2]}
47. Be3 {[%clk 0:03:05.8]} 47... Qd1+ {[%clk 0:01:29.6]} 48. Kf2 {[%clk
0:02:50.5]} 48... Qc2+ {[%clk 0:01:03.1]} 49. Kf3 {[%clk 0:02:49.8]} 49... Qxg2+
{[%clk 0:00:59.2]} 50. Kxg2 {[%clk 0:02:51.7]} 50... Ne8 {[%clk 0:00:54.9]} 51.
Kf3 {[%clk 0:02:49.8]} 51... Nc7 {[%clk 0:00:54.9]} 52. Ke2 {[%clk 0:02:49.8]}
52... Ke7 {[%clk 0:00:54.6]} 53. Bh6 {[%clk 0:02:48.6]} 53... Na8 {[%clk
0:00:53.5]} 54. Kd3 {[%clk 0:02:48.2]} 54... Nb6 {[%clk 0:00:52.2]} 55. Bd2
{[%clk 0:02:47.9]} 55... Nd7 {[%clk 0:00:48.4]} 56. Ba5 {[%clk 0:02:46.8]} 56...
Nb8 {[%clk 0:00:47.4]} 57. Bd2 {[%clk 0:02:41.1]} 57... Nc6 {[%clk 0:00:47.7]}
58. Bh6 {[%clk 0:02:39.6]} 58... Kf7 {[%clk 0:00:43.1]} 59. Kc3 {[%clk
0:02:37.9]} 59... Ke8 {[%clk 0:00:39.9]} 60. Bg7 {[%clk 0:02:36.5]} 60... Kf7
{[%clk 0:00:36.7]} 61. Bh6 {[%clk 0:02:37.3]} 61... Nd4 {[%clk 0:00:33.3]} 62.
Kd3 {[%clk 0:02:37.6]} 62... Ke7 {[%clk 0:00:26.6]} 63. Bd2 {[%clk 0:02:36.3]}
63... Kd7 {[%clk 0:00:27]} 64. Bh6 {[%clk 0:02:35.1]} 64... Nf3 {[%clk
0:00:25.7]} 65. Be3 {[%clk 0:02:18.7]} 65... Nd4 {[%clk 0:00:21.3]} 66. Bh6
{[%clk 0:02:18.6]} 66... Nc6 {[%clk 0:00:20.5]} 67. Bg7 {[%clk 0:02:17.3]} 67...
Ke7 {[%clk 0:00:20.3]} 68. Bh6 {[%clk 0:02:18.2]} 68... Nd8 {[%clk 0:00:20.5]}
69. Bd2 {[%clk 0:02:17.8]} 69... Nf7 {[%clk 0:00:20.8]} 70. Ba5 {[%clk
0:02:17.9]} 70... Ng5 {[%clk 0:00:20.7]} 71. Bb6 {[%clk 0:02:15.8]} 71... Kd7
{[%clk 0:00:21.3]} 72. Ba5 {[%clk 0:02:16]} 72... Kc8 {[%clk 0:00:20.1]} 73. Bb6
{[%clk 0:02:13.6]} 73... Kd7 {[%clk 0:00:19.6]} 74. Ba5 {[%clk 0:02:14.1]} 74...
Nf7 {[%clk 0:00:20.5]} 75. Bd2 {[%clk 0:02:14.2]} 75... Kc6 {[%clk 0:00:20.3]}
76. Ba5 {[%clk 0:02:13.8]} 76... Kb7 {[%clk 0:00:20.6]} 77. Ke3 {[%clk 0:02:13]}
77... Ka6 {[%clk 0:00:21.2]} 78. Bc3 {[%clk 0:02:11.4]} 78... Ng5 {[%clk
0:00:19.3]} 79. Kd3 {[%clk 0:02:10.1]} 79... Kb6 {[%clk 0:00:19.3]} 80. Bd2
{[%clk 0:02:09.5]} 80... Nf7 {[%clk 0:00:18.7]} 81. Bc3 {[%clk 0:02:07.3]} 81...
Kc6 {[%clk 0:00:19.4]} 82. Ba5 {[%clk 0:02:07.4]} 82... Kd7 {[%clk 0:00:19.9]}
83. Bd2 {[%clk 0:02:07.3]} 83... Nd8 {[%clk 0:00:19.9]} 84. Bh6 {[%clk
0:02:07.1]} 84... Nb7 {[%clk 0:00:18.2]} 85. Bd2 {[%clk 0:02:07.2]} 85... Nd8
{[%clk 0:00:17.7]} 86. Ba5 {[%clk 0:02:06.2]} 86... Nc6 {[%clk 0:00:17.8]} 87.
Bd2 {[%clk 0:02:06.3]} 87... Nd4 {[%clk 0:00:17.8]} 88. Bh6 {[%clk 0:02:05.6]}
1/2-1/2

[Event "GrandPrix_29.05"]
[Site "Chess.com"]
[Date "2020.05.29"]
[Round "4"]
[White "Igor_Lysyj"]
[Black "Misterlose0"]
[Result "1-0"]
[WhiteElo "2364"]
[BlackElo "1527"]
[TimeControl "600+2"]
[EndTime "11:01:17 PDT"]
[Termination "Igor_Lysyj won on time"]

1. d4 {[%clk 0:10:00.5]} 1... Nf6 {[%clk 0:09:49.8]} 2. c4 {[%clk 0:10:00.4]}
2... c5 {[%clk 0:09:49.4]} 3. d5 {[%clk 0:10:00.7]} 3... e6 {[%clk 0:09:51.3]}
4. Nc3 {[%clk 0:10:00.1]} 4... exd5 {[%clk 0:09:52.9]} 5. cxd5 {[%clk
0:10:00.8]} 5... d6 {[%clk 0:09:54.3]} 6. Nf3 {[%clk 0:10:00.9]} 6... g6 {[%clk
0:09:56.2]} 7. Bf4 {[%clk 0:10:00.1]} 7... a6 {[%clk 0:09:55.6]} 8. a4 {[%clk
0:10:00.2]} 8... Bg7 {[%clk 0:09:56.6]} 9. h3 {[%clk 0:09:59.2]} 9... O-O {[%clk
0:09:58.5]} 10. e3 {[%clk 0:09:58.9]} 10... Ne8 {[%clk 0:09:59.8]} 11. Be2
{[%clk 0:09:56.8]} 11... Nd7 {[%clk 0:10:00.7]} 12. O-O {[%clk 0:09:56.6]} 12...
Ne5 {[%clk 0:10:02.6]} 13. Bxe5 {[%clk 0:09:51.8]} 13... Bxe5 {[%clk 0:09:49.1]}
14. Nxe5 {[%clk 0:09:49.1]} 14... dxe5 {[%clk 0:09:51]} 15. a5 {[%clk
0:09:38.8]} 15... Bd7 {[%clk 0:09:39.6]} 16. Ne4 {[%clk 0:09:01.4]} 16... Rc8
{[%clk 0:09:31.9]} 17. Qb3 {[%clk 0:08:37.9]} 17... Bf5 {[%clk 0:09:30]} 18. Nd2
{[%clk 0:08:30]} 18... Nd6 {[%clk 0:09:29.7]} 19. Nc4 {[%clk 0:08:25]} 19...
Nxc4 {[%clk 0:08:44.4]} 20. Bxc4 {[%clk 0:08:25]} 20... Rb8 {[%clk 0:08:45.3]}
21. Qc3 {[%clk 0:08:14.2]} 21... Qd6 {[%clk 0:08:43.4]} 22. Ra3 {[%clk
0:08:13.5]} 22... b5 {[%clk 0:08:28.8]} 23. axb6 {[%clk 0:08:13]} 23... Rxb6
{[%clk 0:08:28.7]} 24. Rfa1 {[%clk 0:07:49.9]} 24... Bc8 {[%clk 0:08:03.2]} 25.
e4 {[%clk 0:06:42.8]} 25... f5 {[%clk 0:07:27.7]} 26. f4 {[%clk 0:06:07.1]}
26... Re8 {[%clk 0:07:23.2]} 27. Re1 {[%clk 0:06:05.8]} 27... Bd7 {[%clk
0:05:43.1]} 28. exf5 {[%clk 0:06:05.7]} 28... exf4 {[%clk 0:05:40]} 29. Rxe8+
{[%clk 0:05:04.9]} 29... Bxe8 {[%clk 0:05:41.9]} 30. Ra1 {[%clk 0:05:04]} 30...
gxf5 {[%clk 0:04:56.8]} 31. Re1 {[%clk 0:05:02.3]} 31... Bf7 {[%clk 0:04:58]}
32. b3 {[%clk 0:04:22.5]} 32... Qf6 {[%clk 0:02:43.3]} 33. Qd2 {[%clk
0:02:49.2]} 33... Qd4+ {[%clk 0:02:03.4]} 34. Qxd4 {[%clk 0:02:48.3]} 34... cxd4
{[%clk 0:02:05.3]} 35. Rd1 {[%clk 0:02:48.3]} 35... Kg7 {[%clk 0:01:51.4]} 36.
Rxd4 {[%clk 0:02:48.4]} 36... Kf6 {[%clk 0:01:45.3]} 37. d6 {[%clk 0:02:39.9]}
37... Rb8 {[%clk 0:01:31.3]} 38. Kf2 {[%clk 0:00:52.8]} 38... Rd8 {[%clk
0:01:16.3]} 39. Bxf7 {[%clk 0:00:47.7]} 39... Kxf7 {[%clk 0:01:18.2]} 40. Kf3
{[%clk 0:00:48.4]} 40... Ke6 {[%clk 0:00:57.2]} 41. Kxf4 {[%clk 0:00:25.6]}
41... Rxd6 {[%clk 0:00:43]} 42. Rc4 {[%clk 0:00:20.4]} 42... Rb6 {[%clk
0:00:38.7]} 43. b4 {[%clk 0:00:21]} 43... Kf6 {[%clk 0:00:38.4]} 44. g3 {[%clk
0:00:21]} 44... h6 {[%clk 0:00:28.9]} 45. h4 {[%clk 0:00:22.1]} 45... h5 {[%clk
0:00:21]} 46. Rd4 {[%clk 0:00:21.3]} 46... Rc6 {[%clk 0:00:21.1]} 47. Rd8 {[%clk
0:00:14.3]} 47... Rc4+ {[%clk 0:00:21.7]} 48. Kf3 {[%clk 0:00:15.3]} 48... Rxb4
{[%clk 0:00:21.7]} 49. Rd6+ {[%clk 0:00:16.4]} 49... Ke5 {[%clk 0:00:11]} 50.
Rxa6 {[%clk 0:00:17.2]} 50... Rb3+ {[%clk 0:00:12.2]} 51. Kg2 {[%clk 0:00:18.2]}
51... Rb2+ {[%clk 0:00:05.5]} 52. Kh3 {[%clk 0:00:19.2]} 52... Ke4 {[%clk
0:00:05.7]} 53. Ra4+ {[%clk 0:00:18.7]} 53... Kf3 {[%clk 0:00:06.4]} 54. Rf4+
{[%clk 0:00:19.1]} 54... Ke3 {[%clk 0:00:06.1]} 55. Rxf5 {[%clk 0:00:20.3]}
55... Rb1 {[%clk 0:00:03.1]} 56. Rxh5 {[%clk 0:00:20.2]} 56... Ke4 {[%clk
0:00:04.4]} 57. Ra5 {[%clk 0:00:20.3]} 57... Rb8 {[%clk 0:00:02.7]} 58. Ra4+
{[%clk 0:00:19.2]} 1-0

[Event "GrandPrix_29.05"]
[Site "Chess.com"]
[Date "2020.05.29"]
[Round "4"]
[White "troisi"]
[Black "ENajer77"]
[Result "1/2-1/2"]
[WhiteElo "1531"]
[BlackElo "1950"]
[TimeControl "600+2"]
[EndTime "11:01:18 PDT"]
[Termination "Game drawn by repetition"]

1. e4 {[%clk 0:10:00.8]} 1... c6 {[%clk 0:09:23.1]} 2. d4 {[%clk 0:09:58]} 2...
d5 {[%clk 0:09:22.6]} 3. Nc3 {[%clk 0:09:58.8]} 3... dxe4 {[%clk 0:09:22.6]} 4.
Nxe4 {[%clk 0:10:00.7]} 4... Bf5 {[%clk 0:09:23.5]} 5. Ng3 {[%clk 0:10:00.3]}
5... Bg6 {[%clk 0:09:24.1]} 6. Bc4 {[%clk 0:09:47.5]} 6... e6 {[%clk 0:09:13]}
7. N1e2 {[%clk 0:09:47.7]} 7... Bd6 {[%clk 0:09:08.6]} 8. Nf4 {[%clk 0:09:46.3]}
8... Nf6 {[%clk 0:09:09.4]} 9. Qe2 {[%clk 0:09:30.7]} 9... Qc7 {[%clk
0:08:38.1]} 10. Nd3 {[%clk 0:09:06.3]} 10... Nbd7 {[%clk 0:08:27.2]} 11. Bd2
{[%clk 0:08:45.2]} 11... O-O {[%clk 0:08:24.8]} 12. O-O {[%clk 0:08:34.7]} 12...
e5 {[%clk 0:08:05.7]} 13. dxe5 {[%clk 0:08:13.2]} 13... Nxe5 {[%clk 0:08:05.2]}
14. Nxe5 {[%clk 0:08:10]} 14... Bxe5 {[%clk 0:08:01.7]} 15. c3 {[%clk
0:07:45.2]} 15... Rfe8 {[%clk 0:07:37.8]} 16. Qf3 {[%clk 0:07:36.9]} 16... Rad8
{[%clk 0:07:18.8]} 17. Bg5 {[%clk 0:07:21]} 17... b5 {[%clk 0:07:15]} 18. Bb3
{[%clk 0:06:57.8]} 18... Rd3 {[%clk 0:06:12.2]} 19. Be3 {[%clk 0:06:44.6]} 19...
h5 {[%clk 0:05:51.9]} 20. Rfd1 {[%clk 0:06:17.8]} 20... Rxd1+ {[%clk 0:05:29.5]}
21. Qxd1 {[%clk 0:06:05.7]} 21... h4 {[%clk 0:05:29.7]} 22. Nf1 {[%clk 0:06:05]}
22... Rd8 {[%clk 0:05:24.4]} 23. Qe1 {[%clk 0:05:34]} 23... Ng4 {[%clk
0:04:51.5]} 24. h3 {[%clk 0:05:29.5]} 24... Nxe3 {[%clk 0:04:43.2]} 25. Nxe3
{[%clk 0:05:22.4]} 25... Bh2+ {[%clk 0:04:36.8]} 26. Kh1 {[%clk 0:05:20.3]}
26... Bf4 {[%clk 0:04:37.3]} 27. Nf1 {[%clk 0:05:07.8]} 27... c5 {[%clk
0:04:25.2]} 28. Rd1 {[%clk 0:04:06.6]} 28... c4 {[%clk 0:04:16.4]} 29. Rxd8+
{[%clk 0:04:03.2]} 29... Qxd8 {[%clk 0:04:17.1]} 30. Bd1 {[%clk 0:04:01.5]}
30... Kf8 {[%clk 0:03:58.5]} 31. Ne3 {[%clk 0:03:48.4]} 31... Bc7 {[%clk
0:03:50.5]} 32. a4 {[%clk 0:02:59.6]} 32... Qd6 {[%clk 0:03:45.6]} 33. Nf1
{[%clk 0:02:56.4]} 33... a6 {[%clk 0:03:28.3]} 34. Kg1 {[%clk 0:02:54.8]} 34...
Bd3 {[%clk 0:03:19.4]} 35. axb5 {[%clk 0:02:44.1]} 35... axb5 {[%clk 0:03:18.6]}
36. Bf3 {[%clk 0:02:44.8]} 36... g6 {[%clk 0:03:08.3]} 37. Qe3 {[%clk
0:02:38.8]} 37... Kg7 {[%clk 0:03:07.3]} 38. Qg5 {[%clk 0:02:02]} 38... b4
{[%clk 0:01:25.8]} 39. cxb4 {[%clk 0:01:17]} 39... Qxb4 {[%clk 0:01:12.7]} 40.
Qd2 {[%clk 0:01:01.5]} 40... Qb3 {[%clk 0:00:18.2]} 41. Qc3+ {[%clk 0:00:21.4]}
41... Qxc3 {[%clk 0:00:17.3]} 42. bxc3 {[%clk 0:00:23.3]} 42... Be5 {[%clk
0:00:17.6]} 43. Ne3 {[%clk 0:00:20.5]} 43... Bf4 {[%clk 0:00:13.5]} 44. Bd5
{[%clk 0:00:19.4]} 44... Bxe3 {[%clk 0:00:13.8]} 45. fxe3 {[%clk 0:00:21.3]}
45... f5 {[%clk 0:00:13.6]} 46. Kf2 {[%clk 0:00:20.2]} 46... Kf6 {[%clk
0:00:14.4]} 47. g3 {[%clk 0:00:20.5]} 47... Ke5 {[%clk 0:00:15]} 48. Bf7 {[%clk
0:00:15.1]} 48... g5 {[%clk 0:00:11.7]} 49. gxh4 {[%clk 0:00:14.6]} 49... gxh4
{[%clk 0:00:13.2]} 50. Be8 {[%clk 0:00:15.2]} 50... Be4 {[%clk 0:00:08.2]} 51.
Bf7 {[%clk 0:00:15.2]} 51... Bd5 {[%clk 0:00:07.6]} 52. Bh5 {[%clk 0:00:09.6]}
52... Be6 {[%clk 0:00:07.4]} 53. Bf3 {[%clk 0:00:10.2]} 53... f4 {[%clk
0:00:06.5]} 54. exf4+ {[%clk 0:00:11.1]} 54... Kxf4 {[%clk 0:00:07.7]} 55. Be2
{[%clk 0:00:11.1]} 55... Bd5 {[%clk 0:00:07.5]} 56. Bf1 {[%clk 0:00:11.6]} 56...
Be6 {[%clk 0:00:07.6]} 57. Be2 {[%clk 0:00:12.3]} 57... Ke4 {[%clk 0:00:08.9]}
58. Bf1 {[%clk 0:00:12.1]} 58... Kf4 {[%clk 0:00:08.9]} 59. Be2 {[%clk
0:00:13.3]} 1/2-1/2

[Event "GrandPrix_29.05"]
[Site "Chess.com"]
[Date "2020.05.29"]
[Round "4"]
[White "Magicmaster17"]
[Black "Yurovskykh_Alexander"]
[Result "1-0"]
[WhiteElo "2361"]
[BlackElo "2098"]
[TimeControl "600+2"]
[EndTime "11:01:19 PDT"]
[Termination "Magicmaster17 won on time"]

1. Nf3 {[%clk 0:09:59.1]} 1... d5 {[%clk 0:10:00.4]} 2. d4 {[%clk 0:09:59.2]}
2... Nf6 {[%clk 0:10:01]} 3. c4 {[%clk 0:10:00.3]} 3... dxc4 {[%clk 0:10:02.9]}
4. e3 {[%clk 0:09:55.3]} 4... e6 {[%clk 0:10:03.8]} 5. Bxc4 {[%clk 0:09:55.9]}
5... c5 {[%clk 0:10:04.6]} 6. O-O {[%clk 0:09:56]} 6... Nc6 {[%clk 0:10:05.4]}
7. a3 {[%clk 0:09:55.2]} 7... cxd4 {[%clk 0:10:04]} 8. exd4 {[%clk 0:09:55.2]}
8... Be7 {[%clk 0:10:03.4]} 9. Nc3 {[%clk 0:09:55.8]} 9... O-O {[%clk 0:10:03]}
10. Bg5 {[%clk 0:09:53.7]} 10... b6 {[%clk 0:10:02]} 11. Qd3 {[%clk 0:09:46.9]}
11... Bb7 {[%clk 0:09:59.9]} 12. Rad1 {[%clk 0:09:38.9]} 12... Nd5 {[%clk
0:09:01.8]} 13. Bxd5 {[%clk 0:09:25.6]} 13... Bxg5 {[%clk 0:08:49.9]} 14. Be4
{[%clk 0:09:23.5]} 14... g6 {[%clk 0:08:24.2]} 15. d5 {[%clk 0:07:39.8]} 15...
exd5 {[%clk 0:08:15.2]} 16. Nxd5 {[%clk 0:07:27.5]} 16... Bf6 {[%clk 0:07:55.8]}
17. b4 {[%clk 0:07:01.1]} 17... Bg7 {[%clk 0:07:28]} 18. Rfe1 {[%clk 0:05:21.5]}
18... Ne5 {[%clk 0:05:56.7]} 19. Nxe5 {[%clk 0:05:05.6]} 19... Bxe5 {[%clk
0:05:58.6]} 20. g3 {[%clk 0:03:47.7]} 20... Re8 {[%clk 0:04:10.6]} 21. Bg2
{[%clk 0:03:48.2]} 21... Rc8 {[%clk 0:03:55]} 22. Qb5 {[%clk 0:02:18.7]} 22...
a6 {[%clk 0:01:25.4]} 23. Qxb6 {[%clk 0:02:01.8]} 23... Bxd5 {[%clk 0:01:24.9]}
24. Qxd8 {[%clk 0:01:18.9]} 24... Rcxd8 {[%clk 0:01:01.5]} 25. Rxd5 {[%clk
0:01:18.9]} 25... Bb2 {[%clk 0:00:56.4]} 26. Rxe8+ {[%clk 0:00:48.8]} 26... Rxe8
{[%clk 0:00:58.3]} 27. a4 {[%clk 0:00:50.3]} 27... Bc3 {[%clk 0:00:49]} 28. Bf1
{[%clk 0:00:20.9]} 28... Bxb4 {[%clk 0:00:38.1]} 29. Bxa6 {[%clk 0:00:21.9]}
29... Re1+ {[%clk 0:00:28.3]} 30. Kg2 {[%clk 0:00:22.5]} 30... Ra1 {[%clk
0:00:29]} 31. Bc4 {[%clk 0:00:12.8]} 31... Rxa4 {[%clk 0:00:23.1]} 32. Rd7
{[%clk 0:00:13.6]} 32... Bc5 {[%clk 0:00:17]} 33. Bxf7+ {[%clk 0:00:13.9]} 33...
Kh8 {[%clk 0:00:17.3]} 34. Rc7 {[%clk 0:00:11.5]} 34... Bb6 {[%clk 0:00:14.6]}
35. Rc6 {[%clk 0:00:11]} 35... Rb4 {[%clk 0:00:14.9]} 36. Rc2 {[%clk 0:00:10.7]}
36... Kg7 {[%clk 0:00:15.6]} 37. Bd5 {[%clk 0:00:11.4]} 37... g5 {[%clk
0:00:16.5]} 38. Bf3 {[%clk 0:00:10.2]} 38... h6 {[%clk 0:00:16.9]} 39. Be2
{[%clk 0:00:11.3]} 39... Rb3 {[%clk 0:00:16.1]} 40. Rc6 {[%clk 0:00:11.1]} 40...
Rb2 {[%clk 0:00:15.3]} 41. Kf1 {[%clk 0:00:11.6]} 41... Rb1+ {[%clk 0:00:16.1]}
42. Kg2 {[%clk 0:00:12.9]} 42... Rb2 {[%clk 0:00:17.5]} 43. Re6 {[%clk
0:00:14.3]} 43... Bd4 {[%clk 0:00:16]} 44. Re4 {[%clk 0:00:15.3]} 44... Bc5
{[%clk 0:00:16.9]} 45. h4 {[%clk 0:00:16]} 45... gxh4 {[%clk 0:00:17.9]} 46.
gxh4 {[%clk 0:00:13.4]} 46... Bb6 {[%clk 0:00:17.2]} 47. f4 {[%clk 0:00:14.2]}
47... Rb3 {[%clk 0:00:15.9]} 48. Bf3 {[%clk 0:00:14.6]} 48... Re3 {[%clk
0:00:15.3]} 49. Rb4 {[%clk 0:00:14.3]} 49... Bc5 {[%clk 0:00:16.6]} 50. Rc4
{[%clk 0:00:15.5]} 50... Be7 {[%clk 0:00:17.7]} 51. Kg3 {[%clk 0:00:16.7]} 51...
Bxh4+ {[%clk 0:00:16]} 52. Kg4 {[%clk 0:00:18.2]} 52... Bf6 {[%clk 0:00:15.9]}
53. Rc7+ {[%clk 0:00:16.1]} 53... Re7 {[%clk 0:00:14.9]} 54. Rc6 {[%clk
0:00:17.1]} 54... Ra7 {[%clk 0:00:14.9]} 55. Bd5 {[%clk 0:00:16.4]} 55... Rd7
{[%clk 0:00:14.2]} 56. Be4 {[%clk 0:00:16.9]} 56... Re7 {[%clk 0:00:15.3]} 57.
Kf5 {[%clk 0:00:15.5]} 57... Rf7 {[%clk 0:00:16.3]} 58. Bd5 {[%clk 0:00:16.3]}
58... Rf8 {[%clk 0:00:17.8]} 59. Rc7+ {[%clk 0:00:17.6]} 59... Kh8 {[%clk
0:00:18.2]} 60. Kg6 {[%clk 0:00:18.8]} 1-0

[Event "GrandPrix_29.05"]
[Site "Chess.com"]
[Date "2020.05.29"]
[Round "4"]
[White "Bestromano"]
[Black "ZefirKa"]
[Result "1-0"]
[WhiteElo "2012"]
[BlackElo "2084"]
[TimeControl "600+2"]
[EndTime "11:01:23 PDT"]
[Termination "Bestromano won on time"]

1. e4 {[%clk 0:10:01.9]} 1... c6 {[%clk 0:10:00.7]} 2. d4 {[%clk 0:10:02.7]}
2... d5 {[%clk 0:10:01.1]} 3. e5 {[%clk 0:10:04.2]} 3... Bf5 {[%clk 0:10:01.5]}
4. Nd2 {[%clk 0:10:05.6]} 4... e6 {[%clk 0:09:51.8]} 5. Nb3 {[%clk 0:10:04.2]}
5... c5 {[%clk 0:09:42.4]} 6. dxc5 {[%clk 0:09:53.8]} 6... Bxc5 {[%clk
0:09:43.1]} 7. Nxc5 {[%clk 0:09:51]} 7... Qa5+ {[%clk 0:09:43.7]} 8. c3 {[%clk
0:09:52.6]} 8... Qxc5 {[%clk 0:09:44.4]} 9. Be3 {[%clk 0:09:54.3]} 9... Qc7
{[%clk 0:09:43.2]} 10. f4 {[%clk 0:09:49.3]} 10... Ne7 {[%clk 0:09:39.8]} 11.
Nf3 {[%clk 0:09:50.3]} 11... O-O {[%clk 0:09:31.6]} 12. Be2 {[%clk 0:09:47]}
12... Nbc6 {[%clk 0:09:03.6]} 13. O-O {[%clk 0:09:45.1]} 13... Be4 {[%clk
0:08:51.1]} 14. Nd4 {[%clk 0:09:41.6]} 14... a6 {[%clk 0:08:33]} 15. Bf3 {[%clk
0:09:38.9]} 15... Nxd4 {[%clk 0:08:10.8]} 16. Bxd4 {[%clk 0:09:38.9]} 16... Nf5
{[%clk 0:07:48.7]} 17. Bf2 {[%clk 0:09:17.4]} 17... Rad8 {[%clk 0:07:36.7]} 18.
g4 {[%clk 0:09:12.3]} 18... Ne7 {[%clk 0:07:31.2]} 19. Qe2 {[%clk 0:09:06.8]}
19... f5 {[%clk 0:06:52.5]} 20. exf6 {[%clk 0:09:05.9]} 20... Bxf3 {[%clk
0:06:53.5]} 21. Qxf3 {[%clk 0:09:04.8]} 21... Rxf6 {[%clk 0:06:54.2]} 22. Bd4
{[%clk 0:09:05.1]} 22... Rf7 {[%clk 0:06:50.9]} 23. Qe3 {[%clk 0:09:03.4]} 23...
Ng6 {[%clk 0:06:14.7]} 24. f5 {[%clk 0:07:26.8]} 24... exf5 {[%clk 0:06:03.2]}
25. Rxf5 {[%clk 0:07:21.2]} 25... Nh4 {[%clk 0:05:43.1]} 26. Rxf7 {[%clk
0:07:10.9]} 26... Qxf7 {[%clk 0:05:42.7]} 27. Rf1 {[%clk 0:07:11.4]} 27... Qg6
{[%clk 0:05:41.5]} 28. Qg3 {[%clk 0:06:50.3]} 28... Qh6 {[%clk 0:05:36.3]} 29.
Be3 {[%clk 0:06:42.6]} 29... Qe6 {[%clk 0:05:11.8]} 30. Bg5 {[%clk 0:06:43]}
30... Qb6+ {[%clk 0:05:07.2]} 31. Rf2 {[%clk 0:06:23.8]} 31... Ng6 {[%clk
0:04:32.4]} 32. Bxd8 {[%clk 0:06:22.1]} 32... Qxd8 {[%clk 0:04:34.3]} 33. Rf5
{[%clk 0:05:57.8]} 33... h6 {[%clk 0:04:17.3]} 34. g5 {[%clk 0:05:28.5]} 34...
h5 {[%clk 0:04:03]} 35. Qd3 {[%clk 0:05:10.7]} 35... Qb6+ {[%clk 0:03:58]} 36.
Kf1 {[%clk 0:04:31.9]} 36... Qxb2 {[%clk 0:03:46]} 37. Rxd5 {[%clk 0:04:24]}
37... Qc1+ {[%clk 0:03:37]} 38. Kf2 {[%clk 0:04:08.2]} 38... Qf4+ {[%clk
0:03:33.1]} 39. Ke2 {[%clk 0:03:41.4]} 39... Qxh2+ {[%clk 0:03:16.9]} 40. Kd1
{[%clk 0:03:40.9]} 40... Qg1+ {[%clk 0:03:04.4]} 41. Kc2 {[%clk 0:03:40.1]}
41... Qf2+ {[%clk 0:03:01.2]} 42. Kb3 {[%clk 0:03:25.5]} 42... Qb6+ {[%clk
0:02:54.7]} 43. Ka3 {[%clk 0:03:26.8]} 43... Kh7 {[%clk 0:02:09.7]} 44. c4
{[%clk 0:03:07.2]} 44... Qg1 {[%clk 0:01:49.5]} 45. Rd6 {[%clk 0:02:09.7]} 45...
Qxg5 {[%clk 0:01:49.1]} 46. Kb4 {[%clk 0:02:04.2]} 46... h4 {[%clk 0:01:43.5]}
47. c5 {[%clk 0:01:50.7]} 47... Qg2 {[%clk 0:01:14.7]} 48. Rd4 {[%clk
0:01:08.5]} 48... Qb2+ {[%clk 0:01:13.1]} 49. Ka5 {[%clk 0:01:09.5]} 49... Qxa2+
{[%clk 0:01:10.7]} 50. Kb6 {[%clk 0:01:10.7]} 50... Qb2+ {[%clk 0:00:58.7]} 51.
Kc7 {[%clk 0:01:04.3]} 51... Kh6 {[%clk 0:00:47.7]} 52. Rd6 {[%clk 0:01:01.4]}
52... Qg2 {[%clk 0:00:46]} 53. Qe3+ {[%clk 0:00:46.6]} 53... Kh5 {[%clk
0:00:33.7]} 54. Qd4 {[%clk 0:00:17.8]} 54... Ne7 {[%clk 0:00:02.5]} 55. Qe5+
{[%clk 0:00:12.7]} 55... Qg5 {[%clk 0:00:03.6]} 56. Qxg5+ {[%clk 0:00:07.1]}
56... Kxg5 {[%clk 0:00:05.5]} 57. Kxb7 {[%clk 0:00:08.7]} 57... h3 {[%clk
0:00:06.7]} 58. Rd7 {[%clk 0:00:10.1]} 58... Kf6 {[%clk 0:00:02.9]} 59. Rd3
{[%clk 0:00:10.6]} 1-0